{"text_format":"1","workbook":"xlsx","n_sheets":3,"sheets":["Festivalregnskab","Afvigelsesforklaring","Beretning støttemodtager"],"not_rendered":{"charts":0,"images":0,"macros":1,"external_links":0,"defined_names":25,"comments":0,"pivot_tables":0},"unopened":[],"bounds":{"document_bytes":16777216,"sheet_cells":100000,"rows_first":2000,"rows_last":500,"rows_between":2000,"halvings":0,"cell_chars":16384,"cell_head_chars":4096},"cells_cut":0,"cells_raw":0,"read":"whole","date_system":"1900"}

{"sheet":"Festivalregnskab","index":0,"n_rows":26,"n_cols":8,"rows_kept":26,"cut":false,"hidden":false,"merged":[[1,1,1,7],[0,1,0,7],[24,1,24,7],[19,1,19,4],[20,1,20,4],[21,1,21,4],[23,1,23,4],[22,1,22,4],[2,1,2,3],[2,4,2,7],[3,1,3,7],[5,2,5,4],[17,1,17,4]]}
[null,"BUDGET OG REGNSKABSSKABELON"]
[null,"NORDDOK II KOMPETENCER OG NETVÆRK"]
[null,"Ansøger: "]
[]
[]
[null,"NR. ","POSTER",null,null,"Budget","Realiseret (afvigelsesforklaring: Ark 2)","Difference (udregnes af arket)"]
[null,null,null,null,null,"(DKK ex. moms)","(DKK ex. moms)"]
[null,1,"Deltagerfee / akkreditering",null,null,0,0,{"$f":"F8-G8","v":0}]
[null,2,"Rejse t/r",null,null,0,0,0]
[null,3,"Ophold",null,null,0,0,0]
[null,4,"Andet (specificer)",null,null,0,0,0]
[null,5,"Andet (specificer)",null,null,0,0,0]
[null,6,"Andet (specificer)",null,null,0,0,0]
[null,7,"Andet (specificer)",null,null,0,0,0]
[null,8,"Andet (specificer)",null,null,0,0,0]
[null,9,"Andet (specificer)",null,null,0,0,0]
[null,10,"Andet (specificer)",null,null,0,0,0]
[null,"GRAND TOTAL","GRAND TOTAL",null,null,{"$f":"SUM(#REF!,#REF!,#REF!)","v":{"$error":"#REF!"}},{"$f":"SUM(#REF!,#REF!,#REF!)","v":{"$error":"#REF!"}},{"$f":"SUM(#REF!,#REF!,#REF!)","v":{"$error":"#REF!"}}]
[]
[null,"FINANSIERING (endelig finansiering ved regnskabsaflæggelse)"]
[null,"Filminstittuttet (ansøgt beløb)",null,null,null,0,0,{"$f":"F21-G21","v":0}]
[null,"Evt. anden finansiering ",null,null,null,0,0,{"$f":"F22-G22","v":0}]
[null,"Egen finansiering ",null,null,null,0,0,{"$f":"F23-G23","v":0}]
[null,"SAMLET FINANSIERING",null,null,null,{"$f":"SUM(F21:F23)","v":0},{"$f":"SUM(G21:G23)","v":0}]
[]
[null,null,null,null,"Navn:",null,null,"Dato:"]

{"sheet":"Afvigelsesforklaring","index":1,"n_rows":17,"n_cols":2,"rows_kept":17,"cut":false,"hidden":false,"merged":[[1,0,1,1],[2,0,2,1],[3,0,3,1],[0,0,0,1]]}
[]
["Ansøger: "]
[]
[]
[]
[null,"KOMMENTAR"]
[]
[{"$f":"Festivalregnskab!B8","v":1}]
[{"$f":"Festivalregnskab!B9","v":2}]
[{"$f":"Festivalregnskab!B10","v":3}]
[{"$f":"Festivalregnskab!B12","v":5}]
[{"$f":"Festivalregnskab!B13","v":6}]
[{"$f":"Festivalregnskab!B14","v":7}]
[{"$f":"Festivalregnskab!B15","v":8}]
[{"$f":"Festivalregnskab!B16","v":9}]
[{"$f":"Festivalregnskab!B17","v":10}]
["Grand total "]

{"sheet":"Beretning støttemodtager","index":2,"n_rows":39,"n_cols":2,"rows_kept":39,"cut":false,"hidden":false,"merged":[[0,1,0,7],[36,1,36,4]]}
[null,"STØTTEMODTAGERS BERETNING"]
[]
[]
[]
[null,"Jeg / vi erklærer hermed, at regnskabet er aflagt i overensstemmelse med:"]
[]
[null,"·         Det Danske Filminstituts retningslinjer i NORDDOK II"]
[]
[null,"·         Bekendtgørelse nr. 1479 om regnskab og revision af projekt- og aktivitetstilskud fra Kulturministeriet af 22/12/2014."]
[]
[]
[null,"Jeg / vi anser den valgte metode for opgørelse af projektregnskabet for hensigtsmæssigt, således at projektregnskabet"]
[null,"giver et retvisende billede af projektet omkostninger og finansiering."]
[]
[]
[null,"Jeg / vi erklærer, at projektregnskabet indeholder samme poster som det godkendte budget, og budgettallene er anført "]
[null,"til sammenligning og at der kun foreligger projektrelateret bilagsmateriale til grund for opgørelse af projektregnskabet."]
[]
[]
[null,"Alle projektomkostninger er opgjort på markedsvilkår, og der er udvist forsvarligt økonomisk forvaltning ved forvaltningen af "]
[null,"de midler, der er omfattet af projektregnskabet. "]
[]
[]
[null,"Tilskudsmidlerne er anvendt sparsommeligt og til formålet i henhold til tilsagnsbrevet af d. [skriv dato fra tilsagnsbrevet.]"]
[]
[]
[]
[]
[]
[null,"Dato: "]
[]
[]
[null,"[Underskrives af tegningsberettiget]"]
[null,"_________________________________________________"]
[null,"Underskrift"]
[]
[null,"Angiv med blokbogstaver:"]
[null,"[Navn]"]
[null,"[Firma]"]